Cogmind - Beta 13 @@@ ROGUE MODE // 2024.04.20 @ 13:59:43 Player: Elliott Result: Self-destructed Performance ------------- Evolutions (2) 1000 Regions Visited (4) 800 Robots Destroyed (15) 75 Value Destroyed (316) 316 Prototype IDs (1) 20 Alien Tech Used (0) 0 Bonus (0) 0 TOTAL SCORE: 2211 Bonus ------- None Cogmind --------- Core Integrity 550/550 Matter 300/300 Energy 24/100 System Corruption 0% Temperature Cool (0) Movement Treading (170) Location -8/Materials Parts ------- > --- POWER (1) -------- (None) > --- PROPULSION (5) --- Armored Treads > --- UTILITY (3) ------ Improved Heat Sink Sensor Array > --- WEAPON (2) ------- Advanced Beam Rifle EM Pulse Cannon > --- INVENTORY (5) ---- Light Ion Engine Hover Unit Heat Sink Large Storage Unit Peak State ------------ > --- POWER ------------ (None) > --- PROPULSION ------- Armored Treads > --- UTILITY ---------- Improved Heat Sink Sensor Array > --- WEAPON ----------- Advanced Beam Rifle EM Pulse Cannon > --- INVENTORY -------- Light Ion Engine Hover Unit Heat Sink Large Storage Unit [Rating: 14] Favorites ----------- Power Light Ion Engine Engine Light Ion Engine Propulsion Aluminum Leg Treads Armored Treads Leg Aluminum Leg Hover Unit Hover Unit Utility Small Storage Unit Device Sensor Array Storage Small Storage Unit Weapon Medium Laser Energy Gun Medium Laser Energy Cannon EM Pulse Cannon Ballistic Gun Light Assault Rifle Special Melee Weapon Datajack Build | -11 -10 -9 -9 -8 ------- Run | Yrd Mat Mat Sto Mat Slots Evolved 4 | . . 2 . 2 Power . | . . . . . Propulsion 3 | . . 1 . 2 Utility 1 | . . 1 . . Weapon . | . . . . . Parts Attached 27 | 7 12 1 2 5 Power 4 | 2 1 . 1 . Engine 4 | 2 1 . 1 . Core . | . . . . . Reactor . | . . . . . Propulsion 9 | 2 5 . 1 1 Treads 1 | . . . . 1 Leg 5 | 2 3 . . . Wheel . | . . . . . Hover 3 | . 2 . 1 . Flight . | . . . . . Utility 6 | 1 2 1 . 2 Device 4 | . 2 1 . 1 Storage 2 | 1 . . . 1 Processor . | . . . . . Hackware . | . . . . . Protection . | . . . . . Artifact . | . . . . . Weapon 8 | 2 4 . . 2 Energy Gun 5 | 1 3 . . 1 Energy Cannon 1 | . . . . 1 Ballistic Gun 1 | 1 . . . . Ballistic Cannon . | . . . . . Launcher . | . . . . . Special Weapon . | . . . . . Impact Weapon . | . . . . . Slashing Weapon . | . . . . . Piercing Weapon . | . . . . . Special Melee Weapon 1 | . 1 . . . Unidentified Prototypes 1 | . . . . 1 Parts Lost 11 | . 3 2 6 . Power 2 | . . 1 1 . Propulsion 3 | . . . 3 . Utility 2 | . 1 . 1 . Weapon 4 | . 2 1 1 . Highest Loss Streak 6 | . 3 2 6 . To Critical Strikes . | . . . . . Average Slot Usage (%) 71 | . 88 68 54 30 Engine 8 | . 14 3 5 . Treads 1 | . . . . 7 Leg 14 | . 26 . . . Hover 7 | . 1 22 20 . Device 8 | . 4 17 11 11 Storage 11 | . 14 11 9 1 Energy Gun 13 | . 17 14 7 5 Special Melee Weapon 4 | . 8 . . . Naked Turns . | . . . . . Heaviest Build 21 | 12 13 12 10 21 Greatest Support 20 | 20 20 12 18 20 Greatest Overweight (x) 6 | . . 1 2 6 Average Overweight (x) . | . . . . . Largest Inventory Capacity 15 | 8 8 8 8 15 Average Capacity 7 | 7 8 8 7 6 Most Carried 6 | 2 6 3 5 4 Average Carried 2 | 1 3 1 3 3 Final Capacity 8 | 8 8 8 5 5 Final Carried 4 | 2 1 3 3 4 Class Distribution -------------------- 60% | Mutant 39% | Scavenger-Mutant Dominant Class ---------------- Mutant | -10/Materials Scavenger-Mutant | -9/Materials Scavenger-Mutant | -9/Storage Mutant | -8/Materials Resources | -11 -10 -9 -9 -8 ----------- Run | Yrd Mat Mat Sto Mat Matter Collected 440 | 106 249 20 15 50 Remotely . | . . . . . Salvage Created 506 | . 256 112 15 123 Parts 35 | . 18 9 2 6 Haulers Intercepted . | . . . . . Recyclers Shooed . | . . . . . Parts Field Recycled . | . . . . . Retrieved Matter . | . . . . . Parts Self-Destructed . | . . . . . Prevented . | . . . . . Kills | -11 -10 -9 -9 -8 ------- Run | Yrd Mat Mat Sto Mat Combat Hostiles Destroyed 9 | . 7 2 . . Guns 9 | . 7 2 . . Classes Destroyed 7 | . 3 2 . 2 Worker 1 | . . . . 1 Recycler 1 | . . . . 1 Operator 2 | . . 1 1 . Watcher 2 | . 2 . . . Swarmer 3 | . 3 . . . Grunt 5 | . 4 1 . . Sentry 1 | . . 1 . . Best Kill Streak 3 | . 3 1 2 2 Combat Bots Only 3 | . 3 1 . . Max Kills in Single Turn 1 | . 1 1 1 1 Gunslinging . | . . . . . Exploded . | . . . . . Melee . | . . . . . Uniques/NPCs Destroyed . | . . . . . Combat | -11 -10 -9 -9 -8 -------- Run | Yrd Mat Mat Sto Mat Hostile Shots Fired 143 | . 77 15 51 . Missed 45 | . 25 6 14 . Damage Taken 1282 | . 649 120 513 . Core 445 | . 129 18 298 . Absorbed by Shields . | . . . . . Core Remaining (%) 56 | 100 48 . 21 . Volleys Fired 76 | . 52 17 2 5 Largest 2 | . 2 2 1 2 Hottest 124 | . 90 90 40 124 Shots Fired 86 | . 59 19 2 6 Gun 85 | . 59 19 2 5 Cannon 1 | . . . . 1 Launcher . | . . . . . Special . | . . . . . Kinetic . | . . . . . Thermal 85 | . 59 19 2 5 Explosive . | . . . . . Electromagnetic 1 | . . . . 1 Robot Hit Streak 11 | . 11 4 4 2 Robot Miss Streak 3 | . 3 1 . 1 Penetration Max . | . . . . . Secondary Targets . | . . . . . Shots Hit Robots 65 | . 46 13 2 4 Core Hits 26 | . 16 6 2 2 Critical Kills . | . . . . . Critical Parts Destroyed . | . . . . . Critical Strikes 3 | . 2 . . 1 Burn 3 | . 2 . . 1 Melee Attacks 7 | . 7 . . . Impact . | . . . . . Slashing . | . . . . . Piercing . | . . . . . Sneak Attacks 3 | . 3 . . . Combat Hostiles . | . . . . . Follow-up Attacks . | . . . . . Damage Inflicted 771 | . 491 146 46 88 Guns 719 | . 491 146 22 60 Cannons 28 | . . . . 28 Explosions . | . . . . . Melee . | . . . . . Ramming 24 | . . . 24 . Kinetic . | . . . . . Thermal 719 | . 491 146 22 60 Explosive . | . . . . . Electromagnetic 28 | . . . . 28 Impact . | . . . . . Slashing . | . . . . . Piercing . | . . . . . Highest Corruption 3 | . . . 3 . Average Corruption 3 | . . . 3 . Corruption Purged . | . . . . . Corruption Blocked . | . . . . . Effects 2 | . . . 2 . Message Errors 1 | . . . 1 . Energy Discharges 1 | . . . 1 . Overload Shots . | . . . . . Overflow Damage . | . . . . . Projectiles . | . . . . . Explosions . | . . . . . Melee . | . . . . . Knockbacks 2 | . . . 2 . Impact 2 | . . . 2 . Kinetic . | . . . . . Secondary . | . . . . . Self-Inflicted Damage 11 | . . . 11 . Shots . | . . . . . Rammed 2 | . . . 2 . Targets Rammed 2 | . . . 2 . Kicked . | . . . . . Crushed . | . . . . . Highest Temperature 248 | . 248 47 5 . Average Temperature 75 | . 80 29 3 . Received Heat Transfer 474 | . 234 51 189 . Siege Activations . | . . . . . Robots Corrupted . | . . . . . Combat Hostiles . | . . . . . Parts Fried . | . . . . . Impact Corruptions . | . . . . . Robots Melted . | . . . . . Combat Hostiles . | . . . . . Parts Melted 2 | . 2 . . . Heat Transferred 2152 | . 1568 349 50 185 Parts Sabotaged . | . . . . . Parts Stolen . | . . . . . Parts Stripped . | . . . . . Power Chain Reactions . | . . . . . Alert | -11 -10 -9 -9 -8 ------- Run | Yrd Mat Mat Sto Mat Peak Influence 180 | . 180 65 92 51 Initial 27 | . . 5 27 26 Average 56 | . 79 36 49 27 Maximum Alert Level . | . . . . . Low Security (%) 100 | 100 100 100 100 100 Level 1 . | . . . . . Level 2 . | . . . . . Level 3 . | . . . . . Level 4 . | . . . . . Level 5 . | . . . . . High Security . | . . . . . Max Security . | . . . . . Squads Dispatched 4 | . 1 1 1 1 Investigation 1 | . 1 . . . Extermination . | . . . . . Reinforcement 3 | . . 1 1 1 Assault . | . . . . . Garrison . | . . . . . Intercept . | . . . . . Searches Triggered . | . . . . . Construction Impeded . | . . . . . Haulers Reinforced . | . . . . . Active Scanning Responses . | . . . . . Cargo Convoy Interrupts . | . . . . . Stealth | -11 -10 -9 -9 -8 --------- Run | Yrd Mat Mat Sto Mat Distress Signals . | . . . . . Communications Jammed . | . . . . . Distress Signals . | . . . . . Times Spotted 33 | . 15 6 11 1 Peak Tracking Total 9 | . 4 4 9 1 Tactical Retreats 1 | . . . 1 . Traps | -11 -10 -9 -9 -8 ------- Run | Yrd Mat Mat Sto Mat Traps Triggered . | . . . . . Indirectly . | . . . . . Trap Hack Attempts . | . . . . . Triggered . | . . . . . Disarmed . | . . . . . Reprogrammed . | . . . . . Reused . | . . . . . Traps Extracted . | . . . . . Installed . | . . . . . Triggered . | . . . . . Machines | -11 -10 -9 -9 -8 ---------- Run | Yrd Mat Mat Sto Mat Machines Disabled . | . . . . . Max in Single Turn . | . . . . . Machines Repaired . | . . . . . Machines Dismantled . | . . . . . Machines Sabotaged . | . . . . . Overloaded Fab Kills . | . . . . . Hacking | -11 -10 -9 -9 -8 --------- Run | Yrd Mat Mat Sto Mat Machines Accessed 2 | . 2 . . . Terminals 2 | . 2 . . . Fabricators . | . . . . . Repair Stations . | . . . . . Recycling Units . | . . . . . Scanalyzers . | . . . . . Garrison Access . | . . . . . Total Hacks 7 | . 7 . . . Successful 1 | . 1 . . . Failed 6 | . 6 . . . Catastrophic . | . . . . . Database Lockouts . | . . . . . Manual . | . . . . . Terminals 7 | . 7 . . . Fabricators . | . . . . . Repair Stations . | . . . . . Recycling Units . | . . . . . Scanalyzers . | . . . . . Garrison Access . | . . . . . Terminal Hacks 1 | . 1 . . . Alert Level 1 | . 1 . . . Fabricator Hacks . | . . . . . Repair Station Hacks . | . . . . . Recycling Unit Hacks . | . . . . . Scanalyzer . | . . . . . Garrison Access Hacks . | . . . . . Unauthorized Hacks . | . . . . . Terminals . | . . . . . Fabricators . | . . . . . Repair Stations . | . . . . . Recycling Units . | . . . . . Scanalyzers . | . . . . . Garrison Access . | . . . . . Data Cores Recovered . | . . . . . Used . | . . . . . Hacking Detections 2 | . 2 . . . Full Trace Events 2 | . 2 . . . Feedback Events . | . . . . . Feedback Blocked . | . . . . . Robot Schematics Acquired . | . . . . . Robots Built . | . . . . . Authchips . | . . . . . Time . | . . . . . Total Robot Build Rating . | . . . . . Part Schematics Acquired . | . . . . . Parts Built . | . . . . . Authchips . | . . . . . Time . | . . . . . Total Part Build Rating . | . . . . . Parts Repaired . | . . . . . Time . | . . . . . Parts Recycled . | . . . . . Recycled Matter . | . . . . . Retrieved Matter . | . . . . . Retrieved Components . | . . . . . Parts Scanalyzed . | . . . . . Part Schematics Acquired . | . . . . . Parts Damaged . | . . . . . Bothacking | -11 -10 -9 -9 -8 ------------ Run | Yrd Mat Mat Sto Mat Used RIF Installer . | . . . . . Robots Hacked 3 | . 3 . . . Non-combat 1 | . 1 . . . Combat 2 | . 2 . . . Robot Hacks Applied 4 | . 4 . . . parse_system 3 | . 3 . . . no_distress 1 | . 1 . . . Relay Couplers Released . | . . . . . Fabnet Peak Effective % . | . . . . . Robots Rewired . | . . . . . Allies Hacked . | . . . . . Hacks Repelled . | . . . . . Allies | -11 -10 -9 -9 -8 -------- Run | Yrd Mat Mat Sto Mat Total Allies . | . . . . . Largest Group . | . . . . . Highest-Rated Group . | . . . . . Highest-Rated Ally . | . . . . . Total Orders . | . . . . . Ally Attacks . | . . . . . Total Damage . | . . . . . Kills . | . . . . . Allies Corrupted . | . . . . . Allies Melted . | . . . . . Intel | -11 -10 -9 -9 -8 ------- Run | Yrd Mat Mat Sto Mat Robot Analysis Total . | . . . . . Derelict Logs Recovered . | . . . . . Drone Launches . | . . . . . Drone Recoveries . | . . . . . Exploration | -11 -10 -9 -9 -8 ------------- Run | Yrd Mat Mat Sto Mat Turns Passed 1001 | 60 500 167 136 138 Spaces Moved 635 | 45 261 103 158 68 Core 80 | 7 . . 62 11 Treads 57 | . . . . 57 Legs 275 | 38 237 . . . Wheels . | . . . . . Hover 223 | . 24 103 96 . Flight . | . . . . . Fastest Speed 50 | 50 56 56 50 50 Average Speed 99 | 109 114 60 66 175 Slowest Speed 350 | 120 120 120 150 350 Overloaded Moves . | . . . . . Propulsion Burnouts . | . . . . . Robots Hopped . | . . . . . Cave-ins Triggered . | . . . . . Exploration Rate (%) 18 | 3 43 8 29 11 Regions Visited 4 Branch Regions 1 Pre-discovered Areas . | . . . . . Known Exits Taken . | . . . . . Unknown Exits Taken 4 | 1 1 1 1 . Scrap Searched . | . . . . . Spaces Dug . | . . . . . Terrain Destroyed . | . . . . . Melee . | . . . . . Projectile . | . . . . . AOE . | . . . . . Terrain Rammed . | . . . . . Walls Destroyed . | . . . . . Machines Disabled . | . . . . . Actions | -11 -10 -9 -9 -8 --------- Run | Yrd Mat Mat Sto Mat Total 907 | 52 401 188 187 79 Wait 146 | . 58 66 22 . Move 631 | 44 260 102 157 68 Hop . | . . . . . Pick Up 6 | 1 2 1 2 . Fast Attach 16 | 6 4 1 . 5 Attach 6 | . 4 . 2 . Detach 5 | . 3 1 . 1 Swap 5 | 1 4 . . . Drop 7 | . 7 . . . Fire 76 | . 52 17 2 5 Melee 7 | . 7 . . . Ram 2 | . . . 2 . Kick . | . . . . . Crush . | . . . . . Escape Stasis . | . . . . . Rewire . | . . . . . Trap . | . . . . . Miscellaneous . | . . . . . Route ------- -11/Scrapyard -10/Materials -9/Materials -9/Storage -8/Materials History --------- Turn | Location | Event 5 | -11/Scrapyard | Discovered new exit (range 15) 61 | -11/Scrapyard | Entered Materials 433 | -10/Materials | Core integrity fell below 50% 469 | -10/Materials | Lost 3 parts (1u2w) 558 | -10/Materials | Discovered new exit (range 6) 561 | -10/Materials | Entered another Materials area 561 | -9/Materials | Evolved 2 slots: Propulsion x1, Utility x1 580 | -9/Materials | Discovered new exit (range 16) 728 | -9/Materials | Entered Storage 837 | -9/Storage | Core integrity fell below 50% 856 | -9/Storage | Discovered new exit (range 16) 864 | -9/Storage | Entered Materials 864 | -8/Materials | Evolved 2 slots: Propulsion x2 876 | -8/Materials | Lost 6 parts (1p3n1u1w) 1002 | -8/Materials | Self-destructed Last Messages --------------- Acquired EM Pulse Cannon. Acquired Imp. Heat Sink. K-01 Serf destroyed. R-06 Scavenger collects Lgt. Ion Engine. Acquired 30 matter. K-01 Serf collects debris. O-16 Technician: "IFF HANDSHAKE FAILED. SECURING TERMINAL." Extracted 20 matter. R-06 Scavenger collects Wheel. K-01 Serf collects debris. R-06 Scavenger collects Sml. Matter Pod. R-06 Scavenger destroyed. K-01 Serf collects debris. R-06 Scavenger collects Lgt. Ion Engine. K-01 Serf collects debris. ALERT: Hostiles spotted, dispatching reinforcements to Terminal M006. R-06 Scavenger suffers critical hit (Burn). K-01 Serf collects debris. Map ----- +----------------------------------------------------+ | ?????????????????#?? #????????????????????????? | | ?????????????????# """ #???##########???????????? | | ?????????????????# "R ##### #???????????? | | ?????????????##### """ # # "T" #???????????? | | ?????????????#"""# "" # # #???????????? | | ?????????????#"T"#? !# # #???????????? | | ??????????####" "####+### + #???????????? | | ??????????# # """ #???????????? | | ??????????#^ # """ #???????????? | | ??????????# # """ #???????????? | | ??????????# ######## #???????????? | | ??????????# ^ """ #??????##########???????????? | | ??????????# """ #???????????????????????????? | | ??????????# """ #################???????????? | | ??????????# ??????????? | | ??????????# ??????????? | | ??????????# ??????????? | | ??????????# ##########+#######?????????????????? | | ??????????# ??????# #???????????????????? | | ??????????# ??????# #???????????????????? | | ??????????# ??????# #???????????????????? | | ??????????# ??????# ### #?????????????? | | ??????????+ ???????# r #?????????????? | | ??????????# ???????# a#???????????????????? | | ??????????###???????# w #???????????????????? | | ????????????????????# @k #???????????????????? | | ????????????????????# u! #???????????????????? | | ????????????????????####+#####???????????????????? | | ???????????????????????# #???????????????????????? | | ???????????????????????# #???????????????????????? | | ???????????????????????# #???????????????????????? | | ???????????????????????# #???????????????????????? | | ??????????????????????? ???????????????????????? | | ???????????????????????# ???????????????????????? | | ???????????????????????# ???????????????????????? | | ???????????????????????? ???????????????????????? | | ???????????????????????? ???????????????????????? | | ???????????????????????? ???????????????????????? | | ???????????????????????? ???????????????????????? | | ???????????????????????? ???????????????????????? | | ???????????????????????? ???????????????????????? | | ???????????????????????? ???????????????????????? | | ?????????????????????????????????????????????????? | | ?????????????????????????????????????????????????? | | ?????????????????????????????????????????????????? | | ?????????????????????????????????????????????????? | | ?????????????????????????????????????????????????? | | ?????????????????????????????????????????????????? | | ?????????????????????????????????????????????????? | | ?????????????????????????????????????????????????? | +----------------------------------------------------+ Best States ------------- Heat Dissipation 45 Energy Generation 10 Energy Capacity 250 Matter Stores 300 Matter Capacity 300 Sight Range 16 Robot Scan Range 14 Terrain Scan Density 10 Evasion (%) 55 Recoil Reduction 1 Item Schematics ----------------- None Robot Schematics ------------------ None Fabricated ------------ Nothing Alien Tech Used ----------------- None Achievements -------------- None Challenges ------------ None Game ------ Seed MachineCoordinationTorch Manual? 0 Play Time 00:11:54 Cumulative 4.1 hours Start 2024.04.20 @ 13:48:58 End 2024.04.20 @ 13:59:43 Sessions 1 Manual Loads 0 Difficulty Rogue Special Mode None Game No. 11 Rogue 11 Adventurer 0 Explorer 0 Win Type - Total 0 Types 0/0/0/0/0/0/0/0/0 Lore% 2 Gallery% 11 Achievement% 11 Wizard Run 0 Options --------- Layout 1 ASCII 0 Keyboard 0 Movement Numpad Keybinds 0 Fullscreen 1 Font 24/Smallcaps Map View 50x35 Zoom Use 0% Tactical HUD 0 Map Filters NONE Filters NONE Steam 1 RUN: 464edf79-e567-4de3-a37c-d32a7840754b